bitfinex-derivatives/quotes_ETHF0:USTF0_20210702
["timestamp","ask_amount","ask_price","bid_price","bid_amount"]
[1625200144268,2.20527,2046.2,2045.9,2.20527]
[1625200146067,5.67477,2046.2,2045.9,2.20527]
[1625200146168,2.20527,2046.0,2045.9,2.20527]
[1625200146518,2.20527,2046.0,2045.5,2.20527]
[1625200146719,7.20527,2046.0,2045.5,2.20527]
[1625200146817,2.20527,2046.0,2045.5,2.20527]
[1625200147317,2.20527,2046.0,2044.2,1.0]
[1625200147419,2.20527,2046.0,2044.1,14.9824]
[1625200147868,7.20527,2046.0,2044.1,14.9824]
[1625200147968,42.7888,2045.5,2044.1,14.9824]
[1625200148070,46.4672,2045.5,2044.1,14.9824]
[1625200148172,2.20527,2044.6,2044.5,2.20527]
[1625200148271,4.49297,2044.6,2044.5,2.20527]
[1625200149370,4.49297,2044.6,2044.3,2.20527]
[1625200149471,4.49297,2044.6,2043.3,1.96688897]
[1625200149723,4.49297,2044.6,2043.2,1.0]
[1625200149724,9.49297,2044.6,2043.2,1.0]
[1625200149922,4.49297,2044.6,2043.2,1.0]
[1625200150223,4.41054,2043.3,2043.2,1.0]
[1625200150877,3.25367937,2043.3,2043.2,1.0]
[1625200151224,1.04840937,2043.3,2043.2,1.0]
[1625200151374,48.9422,2044.2,2043.2,1.0]
[1625200152127,53.9422,2044.2,2043.2,1.0]
[1625200152277,6.94084,2043.3,2043.2,1.0]
[1625200160275,4.41054,2043.3,2043.2,1.0]
[1625200160371,4.41054,2043.3,2043.2,3.8646]
[1625200163639,1.0,2044.3,2043.2,3.8646]
[1625200163740,42.7888,2045.5,2043.2,3.8646]
[1625200163840,15.9356,2045.1,2043.2,3.8646]
[1625200163992,16.9356,2045.1,2043.2,3.8646]
[1625200164140,16.9356,2045.1,2043.3,17.9]
[1625200164242,2.20527,2045.0,2044.8,2.20527]
[1625200164548,2.20527,2045.0,2044.6,2.20527]
[1625200166305,4.41054,2045.0,2044.9,2.20527]
[1625200171476,7.63334,2045.0,2043.5,5.766]
[1625200171578,7.63334,2045.0,2043.5,4.766]
[1625200171929,46.6072,2044.0,2043.5,4.766]
[1625200172036,48.9566,2044.0,2043.5,4.766]
[1625200172390,4.41054,2043.6,2043.5,4.766]
[1625200172527,4.41054,2043.6,2043.2,3.20527]
[1625200174380,4.41054,2043.6,2043.5,2.20527]
[1625200176033,2.20527,2043.6,2043.5,2.20527]
[1625200176793,2.20527,2044.0,2043.5,2.20527]
[1625200177444,2.20527,2044.0,2043.2,3.20527]
[1625200177545,5.78127,2044.0,2043.2,3.20527]
[1625200177644,5.78127,2044.0,2043.2,1.0]
[1625200178348,2.20527,2043.4,2043.2,1.0]
[1625200178498,5.62807,2043.4,2043.2,1.0]
[1625200180352,2.20527,2043.3,2043.2,1.0]
[1625200188393,2.20527,2043.3,2043.2,3.20527]
[1625200197233,5.10307,2043.3,2043.2,0.0001]
[1625200197334,5.10307,2043.3,2042.0,19.3783]
[1625200197438,5.10307,2043.3,2042.0,14.6123]
[1625200198034,59.0987,2042.5,2042.0,14.6123]
[1625200198137,62.8474,2042.5,2042.0,14.6123]
[1625200198289,62.8474,2042.5,2041.0,2.38863888]
[1625200198486,2.20527,2042.1,2042.0,2.20527]
[1625200200556,4.41054,2042.1,2042.0,2.20527]
[1625200200963,4.41054,2042.1,2040.8,1.0]
[1625200201084,4.41054,2042.1,2040.5,20.8106]
[1625200202616,4.99607,2041.3,2041.2,2.20527]
[1625200203718,2.20527,2041.3,2041.2,2.20527]
[1625200204821,2.20527,2041.7,2041.2,2.20527]
[1625200205575,2.20527,2041.7,2041.3,17.8]
[1625200205774,2.20527,2041.7,2041.2,2.20527]
[1625200205874,4.76777,2041.7,2041.2,2.20527]
[1625200206529,2.5625,2041.7,2041.6,2.20527]
[1625200206930,2.20527,2042.0,2041.6,2.20527]
[1625200208329,2.20527,2042.2,2041.6,2.20527]
[1625200208581,2.20527,2042.2,2042.1,4.41054]
[1625200209836,53.9102,2043.0,2042.1,4.41054]
[1625200209936,1.0,2043.5,2042.1,4.41054]
[1625200210240,1.0,2043.5,2042.1,7.70764]
[1625200210638,2.20527,2043.2,2043.1,2.20527]
[1625200212098,1.0,2044.0,2043.1,2.20527]
[1625200212195,14.5574,2044.3,2043.1,4.76797]
[1625200212349,1.0,2044.4,2043.1,4.76797]
[1625200212594,2.20527,2044.0,2043.9,2.20527]
[1625200212695,2.20527,2044.0,2043.9,5.73177]
[1625200217830,2.20527,2044.0,2043.9,3.5265]
[1625200217931,2.20527,2044.0,2043.7,2.20527]
[1625200218632,4.41054,2044.0,2043.7,4.41054]
[1625200218780,4.41054,2044.0,2043.7,2.20527]
[1625200219380,4.41054,2044.0,2042.6,1.0]
[1625200219488,5.41054,2044.0,2042.2,2.41744891]
[1625200219630,10.41054,2044.0,2042.2,1.41744891]
[1625200219735,10.41054,2044.0,2042.1,1.42072715]
[1625200220032,45.5654,2043.4,2041.7,1.42291844]
[1625200220131,1.0,2043.3,2041.7,1.42291844]
[1625200220633,2.20527,2042.7,2042.6,2.20527]
[1625200220833,5.90377,2042.7,2042.6,2.20527]
[1625200221285,5.90377,2042.7,2041.6,15.5999]
[1625200221684,5.90377,2042.7,2041.5,6.18854575]
[1625200221893,5.90377,2042.7,2041.5,4.766]
[1625200222240,5.90377,2042.7,2041.5,6.18922011]
[1625200222637,5.90377,2042.7,2042.5,2.20527]
[1625200224646,2.20527,2042.6,2042.5,2.20527]
[1625200225697,1.0,2043.6,2042.5,2.20527]
[1625200225846,52.8851,2043.7,2042.5,2.20527]
[1625200226048,16.2323,2044.0,2042.5,2.20527]
[1625200226162,15.2323,2044.0,2042.5,2.20527]
[1625200226349,14.8911,2044.5,2042.5,2.20527]
[1625200226700,14.8911,2044.5,2042.2,3.20527]
[1625200226701,2.20527,2043.3,2043.2,2.20527]
[1625200226801,2.20527,2043.3,2043.2,5.26127]
[1625200228472,2.20527,2043.3,2043.2,2.20527]
[1625200232102,1.0,2044.2,2043.2,2.20527]
[1625200232208,15.6072,2044.9,2043.2,5.75467]
[1625200232209,1.0,2044.8,2043.2,5.75467]
[1625200232310,15.6072,2044.9,2043.2,5.75467]
[1625200232710,2.20527,2044.7,2044.4,2.20527]
[1625200233366,2.20527,2044.7,2043.9,44.4181]
[1625200234667,4.41054,2044.7,2044.6,2.20527]
[1625200235673,4.41054,2044.7,2044.4,2.20527]
[1625200236670,4.41054,2044.7,2044.4,4.41054]
[1625200242638,8.17304,2044.7,2044.4,4.41054]
[1625200242737,8.17304,2044.7,2044.4,2.20527]
[1625200243239,54.80084,2044.7,2044.4,2.20527]
[1625200243442,8.17304,2044.7,2044.4,2.20527]
[1625200251330,8.17304,2044.7,2043.3,1.0]
[1625200251428,8.17304,2044.7,2043.0,1.41896361]
[1625200251578,8.17304,2044.7,2042.9,18.09764906]
[1625200251579,9.17304,2044.7,2042.9,16.1111]
[1625200252187,14.17304,2044.7,2042.9,16.1111]
[1625200252383,62.64674,2044.7,2042.9,16.1111]
[1625200252835,5.94397,2043.6,2043.5,2.20527]
[1625200253938,5.94397,2043.6,2042.5,1.42234591]
[1625200254038,5.94397,2043.6,2042.4,1.42274488]
[1625200254839,5.94397,2043.6,2042.9,2.20527]
[1625200255042,5.94397,2043.6,2042.4,1.42274488]
[1625200255141,5.94397,2043.6,2042.3,1.42235249]
[1625200256842,2.20527,2043.1,2043.0,2.20527]
[1625200256942,5.38367,2043.1,2043.0,2.20527]
[1625200258801,7.58894,2043.1,2043.0,2.20527]
[1625200259598,7.58894,2043.1,2042.0,16.49855893]
[1625200259804,7.58894,2043.1,2042.1,1.42639561]
[1625200260308,7.58894,2043.1,2041.9,1.42639037]
[1625200260805,2.20527,2042.6,2042.5,2.20527]
[1625200261221,5.60467,2042.6,2041.8,1.42634109]
[1625200261973,5.60467,2042.6,2041.5,1.42942334]
[1625200262081,10.60467,2042.6,2041.5,1.42942334]
[1625200262175,5.60467,2042.6,2041.5,1.42942334]
[1625200262376,5.60467,2042.6,2041.4,1.601e-05]
[1625200262678,5.60467,2042.6,2041.1,3.4]
[1625200262877,6.90144,2041.2,2041.1,3.4]
[1625200264882,6.90144,2041.2,2041.1,5.60527]
[1625200266838,2.20527,2041.6,2041.1,5.60527]
[1625200266940,2.20527,2041.8,2041.1,8.05457]
[1625200267838,2.20527,2041.8,2041.1,5.60527]
[1625200268894,4.41054,2041.2,2041.1,5.60527]
[1625200268993,7.59894,2041.2,2041.1,5.60527]
[1625200270096,1.0,2042.6,2041.1,5.60527]
[1625200270195,1.0,2042.9,2041.1,7.95447]
[1625200270294,18.84591707,2043.4,2041.1,7.95447]
[1625200270399,15.9789,2043.4,2041.1,7.95447]
[1625200270946,2.20527,2042.8,2042.7,2.20527]
[1625200271048,2.20527,2042.8,2042.5,4e-05]
[1625200271452,2.20527,2042.8,2041.2,1.0]
[1625200271453,5.0,2042.7,2041.2,1.0]
[1625200271551,5.0,2042.7,2041.1,3.4]
[1625200272103,54.5841,2042.2,2041.1,3.4]
[1625200272357,2.8482,2042.2,2041.1,3.4]
[1625200272905,2.20527,2041.4,2041.3,2.20527]
[1625200273007,2.20527,2041.4,2041.3,5.20817]
[1625200273257,1.0,2042.8,2041.3,5.20817]
[1625200273361,15.9789,2043.4,2041.3,5.20817]
[1625200273567,5.0,2043.3,2041.3,5.20817]
[1625200273908,15.9789,2043.4,2041.3,5.20817]
[1625200274157,16.9789,2043.4,2041.3,5.20817]
[1625200274307,17.9705,2043.4,2041.3,5.20817]
[1625200274710,5.0,2043.3,2041.3,5.20817]
[1625200274859,2.20527,2042.0,2041.9,2.20527]
[1625200276213,2.20527,2042.2,2041.9,2.20527]
[1625200276967,2.20527,2042.2,2042.0,2.20527]
[1625200279881,3.19347,2042.2,2042.0,5.18327]
[1625200280131,2.20527,2042.2,2042.0,5.18327]
[1625200280431,2.20527,2042.2,2042.0,59.50897]
[1625200281036,1.0,2043.2,2042.0,59.50897]
[1625200281132,15.9789,2043.4,2042.0,59.50897]
[1625200281236,15.9789,2043.4,2042.0,5.18327]
[1625200282189,15.9789,2043.4,2042.0,2.20527]
[1625200282287,54.0406,2042.9,2042.0,2.20527]
[1625200282435,56.8596,2042.9,2042.0,2.20527]
[1625200282939,2.20527,2042.5,2042.4,2.20527]
[1625200284997,2.20527,2042.8,2042.4,2.20527]
[1625200286951,2.20527,2042.5,2042.4,2.20527]
[1625200296317,15.9789,2043.4,2042.4,67.38297]
[1625200297025,2.20527,2043.5,2043.3,2.20527]
[1625200297728,2.20527,2043.5,2043.3,5.44217]
[1625200297976,2.20527,2043.7,2043.3,5.44217]
[1625200299042,2.20527,2043.7,2043.6,2.20527]
[1625200300199,2.20527,2044.0,2043.6,2.20527]
[1625200301052,4.41054,2044.0,2043.9,2.20527]
[1625200301402,6.71924,2044.0,2041.9,1.0]
[1625200301503,7.71924,2044.0,2041.8,15.5734]
[1625200302103,7.71924,2044.0,2041.9,17.7]
[1625200302804,7.71924,2044.0,2041.9,22.7]
[1625200303004,7.71924,2044.0,2042.7,48.5765]
[1625200303155,4.41054,2044.0,2043.6,2.20527]
[1625200305056,2.20527,2043.7,2043.6,2.20527]
[1625200306111,2.20527,2044.0,2043.6,2.20527]
[1625200306667,4.68167,2044.0,2042.4,1.15]
[1625200307064,2.20527,2043.0,2042.9,2.20527]
[1625200307166,4.99827,2043.0,2042.9,2.20527]
[1625200308422,2.20527,2043.0,2042.9,2.20527]
[1625200309174,2.20527,2043.4,2042.9,2.20527]
[1625200311079,2.20527,2043.4,2043.3,2.20527]
[1625200319614,2.20527,2043.4,2042.9,2.20527]
[1625200321119,2.20527,2043.4,2043.3,2.20527]
[1625200323779,2.20527,2043.4,2042.9,2.20527]
[1625200324587,5.21627,2043.4,2042.9,2.20527]
[1625200325043,42.3811,2043.3,2042.9,2.20527]
[1625200325146,2.20527,2043.0,2042.6,2.20527]
[1625200325245,2.20527,2043.0,2042.4,2.20527]
[1625200325551,2.20527,2043.0,2041.1,6.22340849]
[1625200325652,2.20527,2043.0,2041.1,3.4]
[1625200326155,5.0,2042.9,2041.1,3.4]
[1625200326254,8.2958,2042.9,2041.1,3.4]
[1625200327168,2.20527,2041.3,2041.2,2.20527]
[1625200327267,5.95327,2041.3,2041.2,2.20527]
[1625200338814,5.95327,2041.3,2041.2,3.17727]
[1625200338917,5.95327,2041.3,2041.2,2.20527]
[1625200346103,5.95327,2041.3,2041.1,3.4]
[1625200346500,5.95327,2041.3,2040.4,3.4]
[1625200347300,4.41054,2040.5,2040.4,3.4]
[1625200349765,4.41054,2040.5,2040.4,0.0001]
[1625200349867,4.41054,2040.5,2040.0,0.05]
[1625200351369,2.20527,2040.1,2040.0,0.05]
[1625200355451,2.20527,2040.1,2040.0,2.25527]
[1625200357158,2.20527,2040.5,2040.0,2.25527]
[1625200357256,2.20527,2040.5,2040.0,5.51917]
[1625200357463,2.20527,2040.5,2040.4,2.20527]
[1625200363185,2.20527,2040.5,2040.0,2.25527]
[1625200363336,5.99467,2040.5,2040.0,2.25527]
[1625200363436,2.20527,2040.1,2040.0,2.25527]
[1625200363987,2.20527,2040.1,2040.0,0.05]
[1625200364846,2.20527,2040.1,2038.8,1.0]
[1625200364944,7.20527,2040.1,2037.9,4.54196876]
[1625200365347,7.20527,2040.1,2039.0,5.35]
[1625200365498,4.41054,2039.1,2039.0,0.4838]
[1625200365593,4.41054,2039.1,2038.4,3.4]
[1625200365594,6.74064,2039.1,2038.4,3.4]
[1625200365853,51.2755,2038.5,2038.4,3.4]
[1625200366207,51.2755,2038.5,2038.4,3.1776]
[1625200366408,51.2755,2038.5,2038.4,3.1024]
[1625200366507,51.2755,2038.5,2038.4,2.1524]
[1625200366656,51.2755,2038.5,2037.2,1.0]
[1625200366756,51.2755,2038.5,2037.1,2.84790947]
[1625200367209,2.7155,2038.5,2036.8,15.2287]
[1625200367307,1.0,2039.0,2036.8,15.2287]
[1625200367407,4.41054,2039.1,2036.8,15.2287]
[1625200367507,2.20527,2038.1,2038.0,2.20527]
[1625200367858,61.77757,2038.1,2038.0,2.20527]
[1625200368008,65.38497,2038.1,2036.8,15.2287]
[1625200368861,65.38497,2038.1,2036.8,16.2287]
[1625200369010,2.20527,2038.1,2036.8,16.2287]
[1625200369611,2.20527,2037.8,2037.5,2.20527]
[1625200371920,5.54557,2037.8,2037.3,2.20527]
[1625200372423,5.54557,2037.8,2036.8,15.2287]
[1625200373073,5.54557,2037.8,2037.7,2.469]
[1625200373273,5.54557,2037.8,2036.8,15.2287]
[1625200373574,4.41054,2037.1,2036.9,2.20527]
[1625200375778,4.41054,2037.1,2036.3,3.4]
[1625200376587,7.77984,2037.1,2036.3,3.4]
[1625200377539,7.77984,2037.1,2036.4,2.20527]
[1625200379511,7.77984,2037.1,2036.7,2.20527]
[1625200380261,4.41054,2037.1,2036.7,2.20527]
[1625200381523,4.41054,2037.1,2037.0,5.60527]
[1625200381621,4.41054,2037.1,2037.0,8.28767]
[1625200381825,1.0,2038.5,2037.0,8.28767]
[1625200383634,2.20527,2037.8,2037.7,2.20527]
[1625200384732,1.0,2038.6,2037.7,2.20527]
[1625200384832,3.93367677,2041.6,2037.7,6.00717]
[1625200384980,5.0,2040.1,2037.7,6.00717]
[1625200385331,20.3829,2039.8,2037.7,6.00717]
[1625200385432,15.3829,2039.8,2037.7,6.00717]
[1625200385582,2.20527,2038.7,2038.6,2.20527]
[1625200385682,2.20527,2038.7,2038.6,4.79827]
[1625200386134,5.0,2040.3,2038.6,4.79827]
[1625200386289,14.6491,2040.9,2038.6,4.79827]
[1625200386385,14.6491,2040.9,2038.7,1.0]
[1625200386987,1.0,2040.8,2038.7,1.0]
[1625200387184,6.0,2040.8,2038.7,1.0]
[1625200387536,2.20527,2039.4,2039.3,2.20527]
[1625200387990,5.54277,2039.4,2037.9,1.0]
[1625200388085,1.0,2039.3,2037.8,15.9335]
[1625200389187,5.54277,2039.4,2037.8,15.9335]
[1625200389287,1.0,2039.7,2037.8,18.981]
[1625200389398,14.5632,2040.8,2037.8,18.981]
[1625200389687,2.20527,2039.1,2039.0,2.20527]
[1625200390137,2.20527,2039.1,2038.8,2.20527]
[1625200390640,2.20527,2039.1,2038.3,1.15]
[1625200390738,2.20527,2039.1,2037.8,15.9335]
[1625200391040,2.20527,2039.1,2037.1,1.0]
[1625200391141,1.0,2039.0,2035.7,14.624]
[1625200391289,4.5911,2039.0,2036.4,15.9559]
[1625200391592,2.20527,2038.4,2038.2,2.20527]
[1625200391693,4.64817,2038.4,2038.2,2.20527]
[1625200392196,4.64817,2038.4,2037.0,4.4]
[1625200392293,4.64817,2038.4,2037.0,3.4]
[1625200392742,53.918,2038.0,2037.0,3.4]
[1625200393606,2.20527,2037.5,2037.4,2.20527]
[1625200393998,2.20527,2037.5,2037.2,2.20527]
[1625200395649,2.20527,2037.4,2037.2,2.20527]
[1625200398380,3.563,2037.5,2037.2,2.20527]
[1625200398530,1.0,2038.3,2037.2,2.20527]
[1625200398632,15.9612,2038.7,2037.2,2.20527]
[1625200398885,62.5319,2038.5,2037.2,2.20527]
[1625200399682,5.47867,2037.3,2037.2,2.20527]
[1625200404696,2.20527,2037.3,2037.2,5.94407]
[1625200405551,1.0,2038.3,2037.2,5.94407]
[1625200405651,2.20527,2038.2,2037.9,2.20527]
[1625200405804,2.20527,2038.2,2037.7,2.20527]
[1625200406200,52.2949,2037.8,2037.7,2.20527]
[1625200406353,54.7992,2037.8,2037.7,2.20527]
[1625200406450,54.7992,2037.8,2037.0,3.4]
[1625200407621,4.41054,2037.1,2037.0,5.60527]
[1625200407819,6.92154,2037.1,2037.0,5.60527]
[1625200417310,4.41054,2037.1,2037.0,5.60527]
[1625200420480,4.41054,2037.1,2037.0,9.19207]
[1625200432809,61.25404,2037.1,2037.0,9.19207]
[1625200432909,64.79174,2037.1,2037.0,5.60527]
[1625200434611,7.94824,2037.1,2037.0,5.60527]
[1625200434764,4.41054,2037.1,2037.0,5.60527]
[1625200436114,4.41054,2037.1,2037.0,3.4]
[1625200443258,7.06334,2037.1,2037.0,3.4]
[1625200447873,7.06334,2037.1,2036.3,3.4]
[1625200447986,4.41054,2036.5,2036.3,3.4]
[1625200448183,7.40564,2036.5,2036.3,3.4]
[1625200448333,7.40564,2036.5,2036.3,1.0816]
[1625200448443,7.40564,2036.5,2036.3,0.0001]
[1625200449398,12.40564,2036.5,2036.3,0.0001]
[1625200450566,7.40564,2036.5,2036.3,0.0001]
[1625200451349,7.40564,2036.5,2035.6,0.0001]
[1625200451851,4.41054,2036.5,2035.6,0.0001]
[1625200451950,2.20527,2035.8,2035.7,2.20527]
[1625200452052,2.20527,2035.8,2035.7,5.98277]
[1625200452151,2.20527,2035.8,2035.7,3.7775]
[1625200453400,1.0,2036.6,2035.7,3.7775]
[1625200453553,49.22868245,2037.2,2035.7,3.7775]
[1625200453700,2.97458245,2037.2,2035.7,3.7775]
[1625200454001,2.20527,2036.6,2036.5,2.20527]
[1625200455952,4.41054,2036.6,2036.5,2.20527]
[1625200456909,6.96984,2036.6,2036.5,2.20527]
[1625200457256,6.96984,2036.6,2035.6,0.0001]
[1625200458059,2.20527,2036.1,2036.0,2.20527]
[1625200459814,4.94807,2036.1,2036.0,2.20527]
[1625200459967,4.94807,2036.1,2035.8,2.20527]
[1625200460063,2.20527,2035.9,2035.8,2.20527]
[1625200462519,2.20527,2036.1,2035.8,2.20527]
[1625200462621,1.0,2036.6,2035.8,5.36227]
[1625200462722,16.0252,2037.3,2035.8,5.36227]
[1625200462878,17.0252,2037.3,2035.8,5.36227]
[1625200463179,17.0252,2037.3,2035.9,17.68]
[1625200464085,2.20527,2036.9,2036.8,2.20527]
[1625200467754,2.20527,2037.4,2036.8,2.20527]
[1625200468053,2.20527,2037.4,2037.3,2.20527]
[1625200471309,2.20527,2037.4,2036.8,2.20527]
[1625200472059,2.20527,2037.4,2037.1,2.20527]
[1625200473817,3.1393,2037.8,2037.1,2.20527]
[1625200474115,2.20527,2037.4,2037.1,4.41054]
[1625200481080,2.20527,2037.4,2036.2,1.0]
[1625200481186,5.90577,2037.4,2036.1,16.1263]
[1625200481284,6.90577,2037.4,2036.1,16.1263]
[1625200482150,6.90577,2037.4,2037.0,2.20527]
[1625200482249,5.90577,2037.4,2037.0,2.20527]
[1625200484158,2.20527,2037.1,2037.0,4.62797]
[1625200484557,5.95337,2037.1,2037.0,2.20527]
[1625200487168,3.7481,2037.1,2037.0,2.20527]
[1625200487318,2.20527,2037.4,2037.0,2.20527]
[1625200488122,2.20527,2037.4,2037.3,2.20527]
[1625200495495,2.20527,2037.7,2037.3,2.20527]
[1625200496250,2.20527,2037.7,2037.6,2.20527]
[1625200496903,1.98334761,2038.4,2037.6,2.20527]
[1625200497011,1.98334761,2038.4,2037.6,5.16447]
[1625200497656,1.98798168,2039.0,2037.6,5.16447]
[1625200497753,2.98798168,2039.0,2037.6,5.16447]
[1625200497854,2.98798168,2039.0,2038.2,61.4899]
[1625200497959,2.98798168,2039.0,2038.2,63.7914]
[1625200497960,1.98798168,2039.0,2038.2,63.7914]
[1625200498056,17.07001228,2039.4,2038.2,63.7914]
[1625200498255,2.20527,2038.9,2038.8,2.20527]
[1625200498363,2.20527,2038.9,2038.8,5.16687]
[1625200499511,46.15997,2038.9,2038.8,5.16687]
[1625200499717,46.15997,2038.9,2038.8,2.20527]
[1625200499964,2.20527,2038.9,2038.8,2.20527]
[1625200501971,2.20527,2039.1,2038.8,2.20527]
[1625200502274,2.20527,2039.1,2039.0,2.20527]
[1625200505181,3.17227,2039.1,2039.0,2.20527]
[1625200505536,2.20527,2039.1,2039.0,2.20527]
[1625200509589,2.20527,2039.1,2039.0,4.95657]
[1625200510444,3.17857,2039.1,2039.0,4.95657]
[1625200510545,2.20527,2039.1,2039.0,4.95657]
[1625200518379,2.20527,2039.4,2039.0,4.95657]
[1625200519035,0.9722,2039.8,2039.0,4.95657]
[1625200519186,1.0,2040.3,2039.0,4.95657]
[1625200519335,0.9845,2040.1,2039.0,4.95657]
[1625200520288,2.20527,2039.9,2039.8,2.20527]
[1625200520892,1.0,2040.5,2039.8,2.20527]
[1625200520996,15.1752,2040.6,2039.8,4.68147]
[1625200521243,15.1752,2040.6,2039.9,46.353]
[1625200521442,15.1752,2040.6,2039.8,4.68147]
[1625200521594,1.0,2040.9,2039.8,4.68147]
[1625200521694,14.8061,2041.1,2039.8,4.68147]
[1625200522348,2.20527,2040.8,2040.7,2.20527]
[1625200522447,2.20527,2040.8,2040.7,5.82887]
[1625200523861,49.235,2041.2,2040.7,5.82887]
[1625200524365,49.235,2041.2,2041.1,2.20527]
[1625200526820,49.235,2041.2,2040.7,2.20527]
[1625200526923,52.0408,2041.2,2040.7,2.20527]
[1625200528325,2.20527,2040.9,2040.7,4.41054]
[1625200535096,49.235,2041.2,2040.7,4.41054]
[1625200535195,49.235,2041.2,2040.7,7.91164]
[1625200535395,2.20527,2041.3,2040.7,7.91164]
[1625200536160,17.0837,2041.7,2040.7,7.91164]
[1625200536251,16.0837,2041.7,2040.7,7.91164]
[1625200536351,16.0837,2041.7,2041.6,2.20527]
[1625200536452,2.20527,2041.8,2041.6,2.20527]
[1625200541430,2.20527,2042.1,2041.6,2.20527]
[1625200541831,2.20527,2042.1,2041.6,59.60577]
[1625200542132,1.0,2042.5,2041.6,59.60577]
[1625200542234,92.3006,2043.5,2041.6,59.60577]
[1625200542330,1.0,2043.0,2041.6,59.60577]
[1625200542430,2.20527,2042.6,2042.5,5.36557]
[1625200548379,2.20527,2042.9,2042.5,5.36557]
[1625200548534,2.20527,2042.9,2042.8,2.20527]
[1625200548627,2.20527,2042.9,2042.5,2.20527]
[1625200548730,5.80657,2042.9,2042.5,2.20527]
[1625200548828,5.80657,2042.9,2041.6,1.0]
[1625200548930,6.80657,2042.9,2040.4,0.9763]
[1625200549033,6.80657,2042.9,2040.6,1.0]
[1625200549230,50.6726,2042.1,2040.6,1.0]
[1625200549329,1.0,2042.0,2040.4,0.9763]
[1625200549627,1.0,2042.0,2040.7,17.84]
[1625200549831,1.0,2042.0,2040.6,17.91]
[1625200549933,1.0,2042.0,2039.9,0.9689]
[1625200550184,1.0,2042.0,2039.3,1.0]
[1625200550436,2.20527,2040.9,2040.8,2.20527]
[1625200550639,5.25497,2040.9,2040.8,2.20527]
[1625200552446,5.25497,2040.9,2040.8,4.41054]
[1625200552745,5.25497,2040.9,2039.7,1.0]
[1625200552844,48.8212,2040.6,2039.4,14.9338]
[1625200553094,48.8212,2040.6,2038.9,1.0]
[1625200553197,1.0,2040.5,2038.5,5.9798]
[1625200553745,1.0,2040.5,2038.9,17.81]
[1625200554196,1.0,2040.5,2039.4,1.15]
[1625200554298,5.25497,2040.9,2039.4,2.1237]
[1625200554397,1.0,2040.8,2039.4,2.1237]
[1625200554499,1.0,2040.8,2040.5,2.20527]
[1625200554597,5.25497,2040.9,2040.5,2.20527]
[1625200556506,2.20527,2040.6,2040.5,2.20527]
[1625200562134,2.20527,2040.9,2040.5,2.20527]
[1625200562588,2.20527,2040.9,2040.8,2.20527]
[1625200563487,2.20527,2040.9,2040.5,2.20527]
[1625200564036,5.40217,2040.9,2040.5,2.20527]
[1625200564589,2.20527,2040.6,2040.5,2.20527]
[1625200565791,2.20527,2040.9,2040.5,2.20527]
[1625200566546,2.20527,2040.9,2040.8,2.20527]
[1625200573973,2.20527,2040.9,2040.5,2.20527]
[1625200574566,2.20527,2040.6,2040.5,2.20527]
[1625200579143,1.0,2041.2,2040.5,2.20527]
[1625200579242,4.766,2041.9,2040.5,6.12807]
[1625200579342,5.766,2041.9,2040.5,6.12807]
[1625200579543,1.0,2041.9,2040.5,6.12807]
[1625200579696,1.0,2041.9,2041.7,57.3402]
[1625200579844,15.1264,2042.8,2041.7,57.3402]
[1625200580293,1.42097198,2043.4,2041.7,57.3402]
[1625200580394,1.0,2043.3,2041.7,57.3402]
[1625200580493,1.42146821,2043.5,2041.7,57.3402]
[1625200580598,2.20527,2042.3,2042.2,2.20527]
[1625200580696,2.20527,2042.3,2042.2,4.81387]
[1625200580845,20.1914,2043.6,2042.2,4.81387]
[1625200581496,15.4254,2043.6,2042.2,4.81387]
[1625200581895,20.4254,2043.6,2042.2,4.81387]
[1625200581996,15.4254,2043.6,2042.2,2.20527]
[1625200582647,2.20527,2043.0,2042.9,2.20527]
[1625200582848,2.20527,2043.0,2041.7,1.0]
[1625200582948,5.85597,2043.0,2041.6,59.18]
[1625200584654,5.85597,2043.0,2042.6,2.20527]
[1625200585905,5.85597,2043.0,2042.6,4.74437]
[1625200586605,8.06124,2043.0,2042.9,2.20527]
[1625200587258,63.64764,2043.0,2042.9,2.20527]
[1625200587708,63.64764,2043.0,2041.7,1.0]
[1625200587809,63.64764,2043.0,2040.9,1.0]
[1625200588160,8.06124,2043.0,2040.9,1.0]
[1625200588464,8.06124,2043.0,2041.6,17.73]
[1625200588561,8.06124,2043.0,2041.6,20.3218]
[1625200588663,8.06124,2043.0,2042.7,2.20527]
[1625200593069,8.06124,2043.0,2042.9,54.4686]
[1625200594222,3.6507,2043.0,2042.9,54.4686]
[1625200594322,1.0,2043.8,2042.9,54.4686]
[1625200594422,15.9205,2043.9,2042.9,54.4686]
[1625200594728,2.20527,2043.5,2043.4,2.20527]
[1625200596740,4.41054,2043.5,2043.4,2.20527]
[1625200600917,4.41054,2043.5,2043.4,53.15707]
[1625200601218,15.9205,2043.9,2043.4,53.15707]
[1625200601316,1.42804331,2044.1,2043.4,56.41887]
[1625200602722,1.42804331,2044.1,2044.0,4.41054]
[1625200604722,3.63331331,2044.1,2044.0,4.41054]
[1625200606290,1.42804331,2044.1,2044.0,4.41054]